fUST/lending_fUST_20250804
["ID","MTS","AMOUNT","RATE_DAILY","PERIOD"]
[377187953,1754274642264,-460.0,0.00049315,120]
[377187954,1754274642274,-460.0,0.00049315,120]
[377187955,1754274642283,-725.13,0.00049315,120]
[377187956,1754274642293,-461.40666297,0.00049315,75]
[377187957,1754274642302,-460.0,0.00049315,120]
[377187958,1754274642311,-460.0,0.00049315,120]
[377187959,1754274642320,-460.0,0.00049315,120]
[377187960,1754274642329,-1266.59,0.00049315,120]
[377187961,1754274642339,-460.0,0.00049315,120]
[377187962,1754274642348,-460.0,0.00049315,120]
[377187963,1754274642358,-1011.26,0.00049315,120]
[377187964,1754274642367,-460.0,0.00049315,120]
[377187965,1754274642376,-460.0,0.00049315,120]
[377187966,1754274642385,-197.64676256,0.00049315,120]
[377187967,1754274642395,-234.94253968,0.00049315,120]
[377187968,1754274642404,-493.66,0.00049315,120]
[377187969,1754274642413,-5000.0,0.00049315,120]
[377187970,1754274642422,-460.0,0.00049315,120]
[377187971,1754274642432,-460.0,0.00049315,120]
[377187972,1754274642442,-460.0,0.00049315,120]
[377187973,1754274642451,-460.0,0.00049315,120]
[377187974,1754274642460,-460.0,0.00049315,120]
[377187975,1754274642471,-475.73,0.00049315,120]
[377187976,1754274642480,-460.0,0.00049315,120]
[377187977,1754274642489,-460.0,0.00049315,120]
[377187978,1754274642498,-460.0,0.00049315,120]
[377187979,1754274642507,-460.0,0.00049315,7]
[377187980,1754274642516,-461.02325695,0.00049315,120]
[377187981,1754274642526,-481.66,0.00049315,120]
[377187982,1754274642535,-460.0,0.00049315,120]
[377187983,1754274642545,-462.405396,0.00049315,120]
[377187984,1754274642554,-1014.75,0.00049315,120]
[377187985,1754274642564,-460.0,0.00049315,7]
[377187986,1754274642573,-460.0,0.00049315,120]
[377187987,1754274642582,-460.0,0.00049315,120]
[377187988,1754274642592,-516.98428892,0.00049315,120]
[377187989,1754274642601,-460.0,0.00049315,120]
[377187990,1754274642610,-1301.21,0.00049315,120]
[377187991,1754274642619,-460.0,0.00049315,120]
[377187992,1754274642629,-460.0,0.00049315,120]
[377187993,1754274642638,-580.29,0.00049315,3]
[377187994,1754274642648,-460.0,0.00049315,120]
[377187995,1754274642657,-793.62,0.00049315,120]
[377187996,1754274642666,-460.0,0.00049315,120]
[377187997,1754274642675,-1031.49,0.00049315,120]
[377187998,1754274642685,-837.05,0.00049315,120]
[377187999,1754274642694,-460.0,0.00049315,120]
[377188000,1754274642703,-391.32729866,0.00049315,120]
[377188001,1754274642712,-460.0,0.00049315,120]
[377188002,1754274642721,-461.54412665,0.00049315,120]
[377188003,1754274642731,-527.75,0.00049315,120]
[377188004,1754274642740,-460.0,0.00049315,120]
[377188005,1754274642750,-1947.03,0.00049315,120]
[377188006,1754274642759,-460.0,0.00049315,120]
[377188007,1754274642768,-1081.5,0.00049315,120]
[377188008,1754274642777,-460.0,0.00049315,120]
[377188009,1754274642786,-460.0,0.00049315,120]
[377188010,1754274642796,-484.96,0.00049315,120]
[377188011,1754274642805,-460.0,0.00049315,120]
[377188012,1754274642815,-460.0,0.00049315,120]
[377188013,1754274642831,-460.0,0.00049315,120]
[377188014,1754274642840,-460.0,0.00049315,120]
[377188015,1754274642850,-162.743843,0.00049315,120]
[377188016,1754274642861,-633.05,0.00049315,120]
[377188017,1754274642872,-460.0,0.00049315,120]
[377188018,1754274642881,-460.0,0.00049315,120]
[377188019,1754274642890,-460.47170879,0.00049315,120]
[377188020,1754274642899,-460.0,0.00049315,120]
[377188021,1754274642908,-460.0,0.00049315,120]
[377188022,1754274642917,-462.46698713,0.00049315,120]
[377188023,1754274642927,-460.0,0.00049315,120]
[377188024,1754274642936,-460.0,0.00049315,120]
[377188025,1754274642945,-460.0,0.00049315,120]
[377188026,1754274642954,-1703.37,0.00049315,120]
[377188027,1754274642963,-775.27,0.00049315,120]
[377188028,1754274642972,-460.0,0.00049315,120]
[377188029,1754274642981,-151.0,0.00049315,120]
[377188030,1754274642991,-469.12053159,0.00049315,120]
[377188031,1754274643000,-151.0,0.00049315,120]
[377188032,1754274643010,-679.19,0.00049315,120]
[377188033,1754274643019,-151.0,0.00049315,120]
[377188034,1754274643028,-460.0,0.00049315,120]
[377188035,1754274643037,-151.0,0.00049315,120]
[377188036,1754274643046,-151.0,0.00049315,120]
[377188037,1754274643055,-462.18176434,0.00049315,120]
[377188038,1754274643064,-473.87627565,0.00049315,120]
[377188039,1754274643073,-151.0,0.00049315,120]
[377188040,1754274643083,-151.0,0.00049315,120]
[377188041,1754274643092,-460.0,0.00049315,120]
[377188042,1754274643101,-592.63,0.00049315,120]
[377188043,1754274643110,-1000.0,0.00049315,120]
[377188044,1754274643119,-151.0,0.00049315,120]
[377188045,1754274643128,-461.09469524,0.00049315,120]
[377188046,1754274643137,-151.0,0.00049315,120]
[377188047,1754274643147,-151.0,0.00049315,120]
[377188048,1754274643156,-897.25,0.00049315,120]
[377188049,1754274643165,-460.0,0.00049315,120]
[377188050,1754274643174,-151.0,0.00049315,120]
[377188051,1754274643185,-159.263758,0.00049315,120]
[377188052,1754274643194,-157.854424,0.00049315,120]
[377188053,1754274643203,-462.98529269,0.00049315,120]
[377188054,1754274643212,-939.56,0.00049315,120]
[377188055,1754274643221,-460.0,0.00049315,120]
[377188056,1754274643231,-460.0,0.00049315,120]
[377188057,1754274643240,-571.9,0.00049315,120]
[377188058,1754274643249,-460.0,0.00049315,120]
[377188059,1754274643258,-466.03409821,0.00049315,120]
[377188060,1754274643267,-460.0,0.00049315,120]
[377188061,1754274643277,-460.0,0.00049315,120]
[377188062,1754274643286,-461.5317901,0.00049315,120]
[377188063,1754274643296,-460.0,0.00049315,120]
[377188064,1754274643305,-461.48057319,0.00049315,120]
[377188065,1754274643315,-460.0,0.00049315,120]
[377188066,1754274643324,-461.05192507,0.00049315,120]
[377188067,1754274643333,-6249.43,0.00049315,120]
[377188068,1754274643436,-461.44120374,0.00049315,120]
[377188069,1754274643445,-460.0,0.00049315,120]
[377188070,1754274643454,-460.0,0.00049315,120]
[377188071,1754274643463,-460.0,0.00049315,120]
[377188072,1754274643472,-462.12565283,0.00049315,120]
[377188073,1754274643482,-460.0,0.00049315,120]
[377188074,1754274643492,-467.15786822,0.00049315,120]
[377188075,1754274643501,-464.13,0.00049315,120]
[377188076,1754274643512,-463.6390252,0.00049315,120]
[377188077,1754274643521,-500.0,0.00049315,120]
[377188078,1754274643532,-460.0,0.00049315,120]
[377188079,1754274643542,-460.0,0.00049315,120]
[377188080,1754274643552,-460.0,0.00049315,120]
[377188081,1754274643563,-460.0,0.00049315,120]
[377188082,1754274643579,-151.0,0.00049315,120]
[377188083,1754274643588,-464.32142642,0.00049315,120]
[377188084,1754274643597,-460.0,0.00049315,120]
[377188085,1754274643606,-463.69455183,0.00049315,120]
[377188086,1754274643616,-460.0,0.00049315,120]
[377188087,1754274643625,-151.0,0.00049315,120]
[377188088,1754274643634,-460.69223365,0.00049315,120]
[377188089,1754274643643,-460.34314774,0.00049315,120]
[377188090,1754274643652,-460.0,0.00049315,120]
[377188091,1754274643662,-460.0,0.00049315,120]
[377188092,1754274643671,-460.0,0.00049315,120]
[377188093,1754274643680,-460.0,0.00049315,120]
[377188094,1754274643690,-460.60394074,0.00049315,120]
[377188095,1754274643699,-460.0,0.00049315,120]
[377188096,1754274643709,-545.56,0.00049315,120]
[377188097,1754274643721,-462.06087554,0.00049315,120]
[377188098,1754274643731,-792.77,0.00049315,120]
[377188099,1754274643741,-460.55427837,0.00049315,120]
[377188100,1754274643751,-493.10796598,0.00049315,120]
[377188101,1754274643761,-456.71783582,0.00049315,120]
[377188102,1754274643770,-460.0,0.00049315,120]
[377188103,1754274643778,-460.0,0.00049315,120]
[377188104,1754274643788,-460.0,0.00049315,120]
[377188105,1754274643798,-464.74346297,0.00049315,120]
[377188106,1754274643807,-460.0,0.00049315,120]
[377188107,1754274643818,-604.10300304,0.00049315,120]
[377188108,1754274643828,-461.36939889,0.00049315,120]
[377188109,1754274643837,-460.0,0.00049315,20]
[377188110,1754274643846,-461.43207842,0.00049315,120]
[377188111,1754274643855,-460.0,0.00049315,120]
[377188112,1754274643865,-461.90048896,0.00049315,120]
[377188113,1754274643874,-460.0,0.00049315,120]
[377188114,1754274643884,-834.68,0.00049315,120]
[377188115,1754274643894,-460.0,0.00049315,120]
[377188116,1754274643904,-553.51,0.00049315,120]
[377188117,1754274643913,-730.85,0.00049315,120]
[377188118,1754274643923,-461.16167803,0.00049315,120]
[377188119,1754274643935,-460.88238223,0.00049315,120]
[377188120,1754274643944,-460.59076457,0.00049315,120]
[377188121,1754274643953,-460.0,0.00049315,120]
[377188122,1754274643963,-460.0,0.00049315,120]
[377188123,1754274643972,-465.37140477,0.00049315,120]
[377188124,1754274643981,-460.0,0.00049315,120]
[377188125,1754274643991,-460.0,0.00049315,120]
[377188126,1754274644000,-460.0,0.00049315,120]
[377188127,1754274644010,-319.59293917,0.00049315,120]
[377188128,1754274644020,-306.63517997,0.00049315,120]
[377188129,1754274644029,-833.51,0.00049315,120]
[377188130,1754274644038,-460.0,0.00049315,120]
[377188131,1754274644047,-460.0,0.00049315,120]
[377188132,1754274644057,-460.0,0.00049315,120]
[377188133,1754274644066,-460.0,0.00049315,120]
[377188134,1754274644075,-460.0,0.00049315,120]
[377188135,1754274644084,-460.0,0.00049315,120]
[377188136,1754274644094,-466.43972615,0.00049315,120]
[377188137,1754274644102,-460.99718951,0.00049315,120]
[377188138,1754274644111,-467.24998121,0.00049315,120]
[377188139,1754274644120,-500.42979315,0.00049315,120]
[377188140,1754274644129,-460.0,0.00049315,120]
[377188141,1754274644139,-715.87,0.00049315,120]
[377188142,1754274644148,-460.82843612,0.00049315,120]
[377188143,1754274644157,-500.0,0.00049315,120]
[377188144,1754274644167,-460.0,0.00049315,120]
[377188145,1754274644176,-643.09,0.00049315,120]
[377188147,1754274644187,-460.0,0.00049315,120]
[377188148,1754274644196,-535.68789474,0.00049315,120]
[377188149,1754274644206,-460.0,0.00049315,120]
[377188150,1754274644215,-461.33291651,0.00049315,120]
[377188151,1754274644224,-460.96747676,0.00049315,120]
[377188152,1754274644234,-359.71,0.00049315,30]
[377188153,1754274644243,-460.0,0.00049315,120]
[377188154,1754274644251,-460.0,0.00049315,120]
[377188155,1754274644260,-568.52,0.00049315,120]
[377188156,1754274644270,-460.0,0.00049315,120]
[377188157,1754274644279,-151.0,0.00049315,120]
[377188158,1754274644288,-460.0,0.00049315,120]
[377188159,1754274644297,-151.0,0.00049315,120]
[377188160,1754274644306,-151.0,0.00049315,120]
[377188161,1754274644315,-151.0,0.00049315,120]
[377188162,1754274644324,-704.7,0.00049315,120]
[377188163,1754274644333,-151.0,0.00049315,120]
[377188164,1754274644343,-151.0,0.00049315,120]
[377188165,1754274644352,-578.93,0.00049315,120]
[377188166,1754274644361,-160.0,0.00049315,5]
[377188167,1754274644370,-460.0,0.00049315,120]
[377188168,1754274644379,-473.08966949,0.00049315,120]
[377188169,1754274644388,-460.0,0.00049315,120]
[377188170,1754274644398,-698.65,0.00049315,120]
[377188171,1754274644407,-460.0,0.00049315,120]
[377188172,1754274644416,-460.0,0.00049315,120]
[377188173,1754274644425,-460.0,0.00049315,120]
[377188174,1754274644436,-683.03,0.00049315,30]
[377188175,1754274644445,-671.39,0.00049315,120]
[377188176,1754274644455,-460.0,0.00049315,120]
[377188177,1754274644464,-460.0,0.00049315,120]
[377188178,1754274644473,-460.0,0.00049315,120]
[377188179,1754274644482,-460.0,0.00049315,120]
[377188180,1754274644490,-460.0,0.00049315,120]
[377188181,1754274644500,-461.27523807,0.00049315,120]
[377188182,1754274644509,-500.0,0.00049315,120]
[377188183,1754274644518,-500.0,0.00049315,120]
[377188184,1754274644527,-522.98819159,0.00049315,120]
[377188185,1754274644537,-5406.25,0.00049315,120]
[377188186,1754274644546,-467.45437095,0.00049315,120]
[377188187,1754274644556,-703.19,0.00049315,120]
[377188188,1754274644565,-460.0,0.00049315,120]
[377188189,1754274644574,-462.04309906,0.00049315,120]
[377188190,1754274644582,-460.0,0.00049315,120]
[377188191,1754274644591,-461.33030424,0.00049315,120]
[377188192,1754274644600,-1680.47,0.00049315,120]
[377188193,1754274644609,-16302.77,0.00049315,120]
[377188194,1754274644618,-460.0,0.00049315,120]
[377188195,1754274644627,-460.0,0.00049315,120]
[377188196,1754274644635,-460.0,0.00049315,120]
[377188197,1754274644644,-460.0,0.00049315,120]
[377188198,1754274644653,-460.0,0.00049315,120]
[377188199,1754274644662,-460.0,0.00049315,120]
[377188200,1754274644671,-460.0,0.00049315,120]
[377188201,1754274644680,-460.0,0.00049315,120]
[377188202,1754274644689,-1105.32,0.00049315,120]
[377188204,1754274644698,-460.0,0.00049315,120]
[377188205,1754274644707,-17107.65,0.00049315,120]
[377188206,1754274644716,-345.86437066,0.00049315,120]
[377188207,1754274644725,-1947.01,0.00049315,120]
[377188208,1754274644734,-460.8220755,0.00049315,120]
[377188209,1754274644743,-466.4218247,0.00049315,120]
[377188210,1754274644752,-460.0,0.00049315,120]
[377188211,1754274644761,-460.0,0.00049315,120]
[377188212,1754274644770,-460.0,0.00049315,120]
[377188213,1754274644779,-460.0,0.00049315,120]
[377188214,1754274644788,-530.04,0.00049315,120]
[377188215,1754274644798,-460.0,0.00049315,120]
[377188216,1754274644808,-153.63079156,0.00049315,120]
[377188217,1754274644821,-460.0,0.00049315,120]
[377188218,1754274644830,-300.59410744,0.00049315,120]
[377188219,1754274644839,-460.0,0.00049315,120]
[377188220,1754274644849,-1895.09,0.00049315,120]
[377188221,1754274644858,-151.0,0.00049315,120]
[377188222,1754274644867,-248.531724,0.00049315,120]
[377188223,1754274644880,-937.89,0.00049315,120]
[377188224,1754274644889,-460.0,0.00049315,120]
[377188225,1754274644899,-460.0,0.00049315,120]
[377188226,1754274644908,-478.71,0.00049315,120]
[377188227,1754274644917,-1401.02,0.00049315,120]
[377188228,1754274644926,-460.0,0.00049315,120]
[377188229,1754274644935,-460.86369449,0.00049315,120]
[377188230,1754274644945,-461.27303679,0.00049315,120]
[377188231,1754274644954,-460.0,0.00049315,120]
[377188232,1754274644963,-379.14197908,0.00049315,120]
[377188233,1754274644972,-464.12195904,0.00049315,120]
[377188234,1754274644981,-1140.61,0.00049315,120]
[377188235,1754274644990,-460.0,0.00049315,120]
[377188236,1754274644999,-460.0,0.00049315,120]
[377188237,1754274645009,-12263.01,0.00049315,120]
[377188238,1754274645019,-1501.2,0.00049315,120]
[377188239,1754274645028,-460.0,0.00049315,120]
[377188240,1754274645037,-460.0,0.00049315,120]
[377188241,1754274645046,-500.0,0.00049315,14]
[377188242,1754274645055,-463.40859168,0.00049315,120]
[377188243,1754274645064,-462.2805644,0.00049315,120]
[377188244,1754274645073,-460.0,0.00049315,120]
[377188245,1754274645082,-460.0,0.00049315,120]
[377188246,1754274645091,-1083.04,0.00049315,120]
[377188247,1754274645100,-460.0,0.00049315,120]
[377188248,1754274645199,-646.51,0.00049315,120]
[377188249,1754274645209,-460.0,0.00049315,120]
[377188250,1754274645218,-1163.5,0.00049315,120]
[377188251,1754274645227,-460.0,0.00049315,120]
[377188252,1754274645236,-460.0,0.00049315,120]
[377188253,1754274645245,-723.88,0.00049315,120]
[377188254,1754274645254,-460.0,0.00049315,120]
[377188255,1754274645263,-462.59925954,0.00049315,120]
[377188256,1754274645272,-1629.83,0.00049315,120]
[377188257,1754274645281,-460.0,0.00049315,120]
[377188258,1754274645291,-460.0,0.00049315,120]
[377188259,1754274645300,-460.0,0.00049315,120]
[377188260,1754274645311,-460.90907658,0.00049315,120]
[377188261,1754274645327,-460.0,0.00049315,120]
[377188263,1754274645336,-460.0,0.00049315,120]
[377188265,1754274645346,-460.0,0.00049315,120]
[377188267,1754274645357,-783.13,0.00049315,120]
[377188269,1754274645366,-1708.96,0.00049315,120]
[377188271,1754274645376,-385.48514091,0.00049315,5]
[377188274,1754274645386,-709.16,0.00049315,120]
[377188276,1754274645398,-1374.15,0.00049315,120]
[377188277,1754274645413,-543.48,0.00049315,120]
[377188279,1754274645423,-1023.57,0.00049315,60]
[377188281,1754274645433,-528.16,0.00049315,120]
[377188283,1754274645442,-500.0,0.00049315,120]
[377188285,1754274645452,-464.72501862,0.00049315,120]
[377188287,1754274645461,-461.38096873,0.00049315,120]
[377188289,1754274645471,-1295.2,0.00049315,120]
[377188291,1754274645480,-898.31,0.00049315,120]
[377188293,1754274645489,-3266.65,0.00049315,120]
[377188295,1754274645498,-460.0,0.00049315,120]
[377188297,1754274645508,-487.14,0.00049315,120]
[377188299,1754274645517,-1575.77,0.00049315,120]
[377188301,1754274645526,-7517.95,0.00049315,120]
[377188302,1754274645535,-460.0,0.00049315,120]
[377188303,1754274645544,-1927.72,0.00049315,120]
[377188304,1754274645553,-460.0,0.00049315,120]
[377188305,1754274645563,-482.08,0.00049315,120]
[377188306,1754274645572,-1296.46,0.00049315,120]
[377188307,1754274645581,-2834.93,0.00049315,120]
[377188308,1754274645590,-460.0,0.00049315,120]
[377188309,1754274645599,-460.0,0.00049315,120]
[377188310,1754274645608,-7024.71,0.00049315,120]
[377188311,1754274645618,-460.0,0.00049315,120]
[377188312,1754274645627,-465.14362087,0.00049315,120]
[377188313,1754274645636,-460.0,0.00049315,120]
[377188314,1754274645645,-460.0,0.00049315,120]
[377188315,1754274645655,-759.86,0.00049315,120]
[377188316,1754274645665,-151.0,0.00049315,120]
[377188317,1754274645674,-460.0,0.00049315,120]
[377188318,1754274645683,-586.63471803,0.00049315,120]
[377188319,1754274645692,-561.8,0.00049315,120]
[377188320,1754274645701,-701.79,0.00049315,120]
[377188321,1754274645710,-460.0,0.00049315,120]
[377188322,1754274645720,-460.0,0.00049315,120]
[377188323,1754274645729,-551.04,0.00049315,120]
[377188324,1754274645738,-460.0,0.00049315,120]
[377188325,1754274645748,-460.0,0.00049315,120]
[377188326,1754274645757,-460.0,0.00049315,120]
[377188327,1754274645767,-465.64023474,0.00049315,120]
[377188328,1754274645776,-460.0,0.00049315,120]
[377188329,1754274645785,-1265.72,0.00049315,120]
[377188330,1754274645794,-2003.99,0.00049315,120]
[377188331,1754274645815,-460.0,0.00049315,120]
[377188332,1754274645829,-2706.73,0.00049315,120]
[377188333,1754274645838,-460.0,0.00049315,120]
[377188334,1754274645847,-1239.36,0.00049315,120]
[377188335,1754274645856,-601.54,0.00049315,120]
[377188336,1754274645866,-462.22366267,0.00049315,120]
[377188337,1754274645875,-3904.5,0.00049315,120]
[377188338,1754274645884,-460.0,0.00049315,120]
[377188339,1754274645895,-826.57,0.00049315,120]
[377188340,1754274645904,-463.91335734,0.00049315,120]
[377188341,1754274645914,-460.0,0.00049315,120]
[377188342,1754274645923,-460.0,0.00049315,120]
[377188343,1754274645933,-714.96,0.00049315,120]
[377188344,1754274645943,-1358.07,0.00049315,21]
[377188345,1754274645952,-780.86,0.00049315,120]
[377188346,1754274645962,-676.21,0.00049315,120]
[377188347,1754274645971,-5597.77,0.00049315,120]
[377188348,1754274645981,-401.01909626,0.00049315,120]
[377188349,1754274645990,-460.0,0.00049315,120]
[377188350,1754274645999,-503.65660423,0.00049315,120]
[377188351,1754274646009,-460.0,0.00049315,120]
[377188352,1754274646019,-460.0,0.00049315,120]
[377188353,1754274646028,-460.0,0.00049315,120]
[377188354,1754274646037,-705.52,0.00049315,120]
[377188355,1754274646047,-794.92,0.00049315,120]
[377188356,1754274646057,-853.57,0.00049315,120]
[377188357,1754274646066,-1663.35,0.00049315,120]
[377188358,1754274646076,-853.57,0.00049315,120]
[377188359,1754274646085,-853.57,0.00049315,120]
[377188360,1754274646095,-853.57,0.00049315,120]
[377188361,1754274646104,-853.57,0.00049315,120]
[377188362,1754274646113,-1445.26,0.00049315,120]
[377188363,1754274646123,-2532.83,0.00049315,120]
[377188364,1754274646132,-853.57,0.00049315,120]
[377188365,1754274646141,-853.57,0.00049315,120]
[377188366,1754274646150,-853.57,0.00049315,120]
[377188367,1754274646160,-853.57,0.00049315,120]
[377188368,1754274646169,-853.57,0.00049315,120]
[377188369,1754274646178,-6867.73,0.00049315,120]
[377188370,1754274646187,-853.57,0.00049315,120]
[377188371,1754274646196,-853.57,0.00049315,120]
[377188372,1754274646205,-460.0,0.00049315,120]
[377188373,1754274646214,-853.57,0.00049315,120]
[377188374,1754274646223,-853.57,0.00049315,120]
[377188375,1754274646232,-853.57,0.00049315,120]
[377188376,1754274646241,-853.57,0.00049315,120]
[377188377,1754274646250,-853.57,0.00049315,120]
[377188378,1754274646260,-853.57,0.00049315,120]
[377188379,1754274646269,-853.57,0.00049315,120]
[377188380,1754274646278,-460.0,0.00049315,120]
[377188381,1754274646287,-853.57,0.00049315,120]
[377188382,1754274646297,-460.0,0.00049315,120]
[377188383,1754274646306,-853.57,0.00049315,120]
[377188384,1754274646315,-853.57,0.00049315,120]
[377188385,1754274646325,-460.0,0.00049315,120]
[377188386,1754274646334,-853.57,0.00049315,120]
[377188387,1754274646343,-853.795304,0.00049315,120]
[377188388,1754274646353,-193.24002312,0.00049315,120]
[377188389,1754274646362,-460.0,0.00049315,120]
[377188390,1754274646372,-628.33,0.00049315,120]
[377188391,1754274646381,-886.63,0.00049315,120]
[377188392,1754274646390,-640.61,0.00049315,120]
[377188393,1754274646399,-460.0,0.00049315,120]
[377188394,1754274646408,-866.15,0.00049315,120]
[377188395,1754274646417,-1282.94,0.00049315,120]
[377188396,1754274646426,-1696.41,0.00049315,120]
[377188397,1754274646436,-460.0,0.00049315,120]
[377188398,1754274646445,-460.0,0.00049315,120]
[377188399,1754274646454,-465.14594053,0.00049315,120]
[377188400,1754274646463,-460.0,0.00049315,120]
[377188401,1754274646472,-460.0,0.00049315,120]
[377188402,1754274646481,-712.19,0.00049315,120]
[377188403,1754274646490,-675.43,0.00049315,120]
[377188404,1754274646499,-460.0,0.00049315,120]
[377188405,1754274646508,-460.0,0.00049315,120]
[377188406,1754274646517,-1185.52,0.00049315,120]
[377188407,1754274646533,-460.0,0.00049315,120]
[377188408,1754274646544,-3656.13,0.00049315,120]
[377188409,1754274646554,-151.94567519,0.00049315,120]
[377188410,1754274646563,-1081.86,0.00049315,120]
[377188411,1754274646572,-460.52710938,0.00049315,120]
[377188412,1754274646581,-461.22766692,0.00049315,120]
[377188413,1754274646590,-151.68381697,0.00049315,120]
[377188414,1754274646600,-154.18347456,0.00049315,120]
[377188415,1754274646609,-460.0,0.00049315,120]
[377188416,1754274646617,-493.54774092,0.00049315,120]
[377188417,1754274646626,-460.0,0.00049315,120]
[377188418,1754274646636,-460.73986513,0.00049315,120]
[377188419,1754274646645,-710.11,0.00049315,120]
[377188420,1754274646655,-460.0,0.00049315,120]
[377188421,1754274646664,-502.08615837,0.00049315,120]
[377188422,1754274646674,-589.66,0.00049315,120]
[377188423,1754274646686,-1755.55,0.00049315,30]
[377188424,1754274646695,-1432.89,0.00049315,120]
[377188425,1754274646704,-460.0,0.00049315,120]
[377188426,1754274646713,-460.0,0.00049315,120]
[377188427,1754274646722,-602.43808552,0.00049315,120]
[377188428,1754274646731,-1039.74,0.00049315,120]
[377188429,1754274646740,-1646.37,0.00049315,120]
[377188430,1754274646749,-460.0,0.00049315,120]
[377188431,1754274646758,-460.0,0.00049315,120]
[377188432,1754274646852,-1154.11,0.00049315,120]
[377188433,1754274646862,-460.0,0.00049315,120]
[377188434,1754274646871,-500.275426,0.00049315,120]
[377188435,1754274646880,-500.275426,0.00049315,120]
[377188436,1754274646892,-500.275426,0.00049315,120]
[377188437,1754274646902,-460.0,0.00049315,120]
[377188438,1754274646911,-500.275426,0.00049315,120]
[377188439,1754274646920,-500.275426,0.00049315,120]
[377188440,1754274646930,-500.275426,0.00049315,120]
[377188441,1754274646939,-461.82841496,0.00049315,120]
[377188442,1754274646948,-17235.62,0.00049315,120]
[377188443,1754274646958,-460.0,0.00049315,120]
[377188444,1754274646967,-460.0,0.00049315,120]
[377188445,1754274646976,-462.14596284,0.00049315,120]
[377188446,1754274646985,-404.96078515,0.00049315,120]
[377188447,1754274646994,-500.275426,0.00049315,120]
[377188448,1754274647003,-461.84903361,0.00049315,30]
[377188449,1754274647012,-458.44593449,0.00049315,120]
[377188450,1754274647022,-500.275426,0.00049315,120]
[377188451,1754274647031,-2600.02,0.00049315,120]
[377188452,1754274647040,-500.275426,0.00049315,120]
[377188453,1754274647049,-464.33937457,0.00049315,120]
[377188454,1754274647058,-500.275426,0.00049315,120]
[377188455,1754274647068,-500.275426,0.00049315,120]
[377188456,1754274647077,-500.275432,0.00049315,120]
[377188457,1754274647087,-460.0,0.00049315,120]
[377188458,1754274647096,-800.59,0.00049315,120]
[377188459,1754274647105,-460.0,0.00049315,120]
[377188460,1754274647114,-460.0,0.00049315,120]
[377188461,1754274647124,-461.03093924,0.00049315,120]
[377188462,1754274647133,-460.0,0.00049315,120]
[377188463,1754274647143,-460.0,0.00049315,120]
[377188464,1754274647152,-465.93863071,0.00049315,120]
[377188465,1754274647162,-460.0,0.00049315,120]
[377188466,1754274647172,-460.0,0.00049315,120]
[377188467,1754274647182,-460.0,0.00049315,120]
[377188468,1754274647192,-1380.54,0.00049315,120]
[377188469,1754274647201,-1356.24,0.00049315,120]
[377188470,1754274647210,-460.0,0.00049315,120]
[377188471,1754274647219,-325.1100594,0.00049315,120]
[377188472,1754274647228,-460.0,0.00049315,120]
[377188473,1754274647237,-460.0,0.00049315,120]
[377188474,1754274647247,-460.0,0.00049315,120]